[Event "Titled Tuesday Blitz March 15 Early 2022"]
[White "Prohorov, Olexandr"]
[Black "Marson, Juan Miguel"]
[WhiteFideId "14105578"]
[BlackFideId "106585"]
[WhiteElo "1993"]
[BlackElo "2053"]
[Result "1/2-1/2"]
[Round "07"]
[TimeControl "180+1"]
[Date "2022.03.15"]
[WhiteClock "0:00:06"]
[BlackClock "0:00:05"]

1. Nf3 {[%clk 0:02:59]}  Nf6 {[%clk 0:02:58]} 2. c4 {[%clk 0:02:58]}  g6 {[%clk 0:02:58]} 3. Nc3 {[%clk 0:02:57]}  Bg7 {[%clk 0:02:58]} 4. e4 {[%clk 0:02:56]}  d6 {[%clk 0:02:58]} 5. d4 {[%clk 0:02:57]}  O-O {[%clk 0:02:59]} 6. Be2 {[%clk 0:02:58]}  e5 {[%clk 0:02:59]} 7. O-O {[%clk 0:02:59]}  Nc6 {[%clk 0:02:58]} 8. d5 {[%clk 0:02:57]}  Ne7 {[%clk 0:02:58]} 9. b4 {[%clk 0:02:58]}  a5 {[%clk 0:02:52]} 10. Ba3 {[%clk 0:02:56]}  axb4 {[%clk 0:02:44]} 11. Bxb4 {[%clk 0:02:56]}  b6 {[%clk 0:02:45]} 12. a4 {[%clk 0:02:55]}  Ne8 {[%clk 0:02:41]} 13. a5 {[%clk 0:02:50]}  c5 {[%clk 0:02:41]} 14. dxc6 {[%clk 0:02:31]}  Nxc6 {[%clk 0:02:41]} 15. Qb3 {[%clk 0:02:30]}  Nxb4 {[%clk 0:02:32]} 16. Qxb4 {[%clk 0:02:31]}  bxa5 {[%clk 0:02:31]} 17. Qa3 {[%clk 0:02:28]}  Qe7 {[%clk 0:02:29]} 18. Nd5 {[%clk 0:02:24]}  Qa7 {[%clk 0:02:10]} 19. Rfb1 {[%clk 0:02:21]}  f5 {[%clk 0:01:53]} 20. Nb6 {[%clk 0:01:40]}  Rb8 {[%clk 0:01:35]} 21. Nxc8 {[%clk 0:01:37]}  Rxc8 {[%clk 0:01:32]} 22. Qxa5 {[%clk 0:01:31]}  Qxa5 {[%clk 0:01:23]} 23. Rxa5 {[%clk 0:01:32]}  fxe4 {[%clk 0:01:23]} 24. Ng5 {[%clk 0:01:33]}  Nf6 {[%clk 0:00:56]} 25. Ra7 {[%clk 0:01:28]}  Rb8 {[%clk 0:00:47]} 26. Rxb8 {[%clk 0:01:08]}  Rxb8 {[%clk 0:00:46]} 27. h4 {[%clk 0:01:09]}  e3 {[%clk 0:00:40]} 28. fxe3 {[%clk 0:01:05]}  Bh6 {[%clk 0:00:41]} 29. Bf3 {[%clk 0:01:01]}  Rc8 {[%clk 0:00:32]} 30. Kf2 {[%clk 0:00:51]}  e4 {[%clk 0:00:29]} 31. Bd1 {[%clk 0:00:42]}  Bxg5 {[%clk 0:00:19]} 32. hxg5 {[%clk 0:00:43]}  Nh5 {[%clk 0:00:11]} 33. Bg4 {[%clk 0:00:38]}  Rf8+ {[%clk 0:00:08]} 34. Ke1 {[%clk 0:00:37]}  Ng7 {[%clk 0:00:05]} 35. Rd7 {[%clk 0:00:35]}  Nf5 {[%clk 0:00:05]} 36. Kd2 {[%clk 0:00:28]}  Ra8 {[%clk 0:00:05]} 37. Bxf5 {[%clk 0:00:23]}  gxf5 {[%clk 0:00:06]} 38. Rxd6 {[%clk 0:00:23]}  Ra2+ {[%clk 0:00:07]} 39. Kc3 {[%clk 0:00:23]}  Rxg2 {[%clk 0:00:07]} 40. c5 {[%clk 0:00:24]}  Rxg5 {[%clk 0:00:08]} 41. c6 {[%clk 0:00:24]}  f4 {[%clk 0:00:07]} 42. exf4 {[%clk 0:00:21]}  Rc5+ {[%clk 0:00:07]} 43. Kd4 {[%clk 0:00:21]}  Rc1 {[%clk 0:00:07]} 44. Kxe4 {[%clk 0:00:22]}  Kf7 {[%clk 0:00:07]} 45. Rd7+ {[%clk 0:00:20]}  Ke6 {[%clk 0:00:07]} 46. Rxh7 {[%clk 0:00:19]}  Rc4+ {[%clk 0:00:08]} 47. Ke3 {[%clk 0:00:17]}  Kf5 {[%clk 0:00:08]} 48. Rh5+ {[%clk 0:00:15]}  Kf6 {[%clk 0:00:08]} 49. Rh6+ {[%clk 0:00:15]}  Kf5 {[%clk 0:00:08]} 50. Rd6 {[%clk 0:00:10]}  Rc1 {[%clk 0:00:05]} 51. Kd4 {[%clk 0:00:03]}  Kxf4 {[%clk 0:00:05]} 52. Kd5 {[%clk 0:00:03]}  Kf5 {[%clk 0:00:05]} 53. Rh6 {[%clk 0:00:02]}  Rd1+ {[%clk 0:00:04]} 54. Kc5 {[%clk 0:00:03]}  Ke5 {[%clk 0:00:02]} 55. Rh5+ {[%clk 0:00:03]}  Ke6 {[%clk 0:00:03]} 56. Rh6+ {[%clk 0:00:03]}  Ke7 {[%clk 0:00:03]} 57. Rh2 {[%clk 0:00:03]}  Kd8 {[%clk 0:00:03]} 58. Re2 {[%clk 0:00:04]}  Kc8 {[%clk 0:00:03]} 59. Rf2 {[%clk 0:00:03]}  Rc1+ {[%clk 0:00:03]} 60. Kd6 {[%clk 0:00:04]}  Rd1+ {[%clk 0:00:04]} 61. Kc5 {[%clk 0:00:04]}  Rc1+ {[%clk 0:00:04]} 62. Kb6 {[%clk 0:00:05]}  Rb1+ {[%clk 0:00:05]} 63. Kc5 {[%clk 0:00:06]}  Rc1+ {[%clk 0:00:05]} 1/2-1/2


[Site "https://www.chess.com"]

[Event "Titled Tuesday Blitz March 15 Early 2022"]
[White "Riehle, Marco"]
[Black "Cramling Bellon, Anna"]
[WhiteFideId "12904392"]
[BlackFideId "32009232"]
[WhiteElo "2462"]
[BlackElo "1905"]
[Result "1-0"]
[Round "07"]
[TimeControl "180+1"]
[Date "2022.03.15"]
[WhiteClock "0:00:40"]
[BlackClock "0:00:02"]

1. e4 {[%clk 0:02:58]}  c5 {[%clk 0:02:59]} 2. a3 {[%clk 0:02:58]}  Nc6 {[%clk 0:02:51]} 3. b4 {[%clk 0:02:54]}  cxb4 {[%clk 0:02:51]} 4. axb4 {[%clk 0:02:55]}  Nxb4 {[%clk 0:02:52]} 5. c3 {[%clk 0:02:39]}  Nc6 {[%clk 0:02:51]} 6. d4 {[%clk 0:02:40]}  d5 {[%clk 0:02:51]} 7. exd5 {[%clk 0:02:37]}  Qxd5 {[%clk 0:02:52]} 8. Na3 {[%clk 0:02:37]}  e6 {[%clk 0:02:47]} 9. Nb5 {[%clk 0:02:37]}  Qd8 {[%clk 0:02:10]} 10. Bf4 {[%clk 0:02:35]}  e5 {[%clk 0:02:07]} 11. dxe5 {[%clk 0:02:36]}  Be6 {[%clk 0:01:17]} 12. Nf3 {[%clk 0:02:27]}  Bc5 {[%clk 0:01:08]} 13. Bd3 {[%clk 0:02:18]}  Nge7 {[%clk 0:01:07]} 14. Nd6+ {[%clk 0:02:09]}  Bxd6 {[%clk 0:01:03]} 15. exd6 {[%clk 0:02:10]}  Nd5 {[%clk 0:00:58]} 16. Bg3 {[%clk 0:02:10]}  Nxc3 {[%clk 0:00:53]} 17. Qd2 {[%clk 0:02:07]}  Nd5 {[%clk 0:00:49]} 18. O-O {[%clk 0:02:06]}  O-O {[%clk 0:00:47]} 19. Ng5 {[%clk 0:01:59]}  h6 {[%clk 0:00:21]} 20. Nxe6 {[%clk 0:01:51]}  fxe6 {[%clk 0:00:22]} 21. Rfe1 {[%clk 0:01:51]}  Qd7 {[%clk 0:00:18]} 22. Bc4 {[%clk 0:01:48]}  Kh8 {[%clk 0:00:09]} 23. Re4 {[%clk 0:01:30]}  Rad8 {[%clk 0:00:03]} 24. Rae1 {[%clk 0:01:27]}  Ncb4 {[%clk 0:00:02]} 25. Rxe6 {[%clk 0:01:22]}  Qc6 {[%clk 0:00:02]} 26. Bb3 {[%clk 0:01:15]}  Qb5 {[%clk 0:00:01]} 27. Rxh6+ {[%clk 0:01:03]}  gxh6 {[%clk 0:00:01]} 28. Qxh6+ {[%clk 0:01:03]}  Kg8 {[%clk 0:00:01]} 29. Be5 {[%clk 0:00:44]}  Rd7 {[%clk 0:00:02]} 30. Qg6+ {[%clk 0:00:40]} 1-0


[Site "https://www.chess.com"]

[Event "Titled Tuesday Blitz March 15 Early 2022"]
[White "Samadov, Read"]
[Black "Shuvalova, Polina"]
[WhiteFideId "13417444"]
[BlackFideId "24171760"]
[WhiteElo "2084"]
[BlackElo "2355"]
[Result "1-0"]
[Round "07"]
[TimeControl "180+1"]
[Date "2022.03.15"]
[WhiteClock "0:00:25"]
[BlackClock "0:00:04"]

1. d4 {[%clk 0:03:00]}  Nf6 {[%clk 0:02:59]} 2. c4 {[%clk 0:03:01]}  e6 {[%clk 0:02:59]} 3. Nf3 {[%clk 0:03:01]}  d5 {[%clk 0:02:58]} 4. g3 {[%clk 0:03:02]}  Bb4+ {[%clk 0:02:57]} 5. Bd2 {[%clk 0:03:01]}  Be7 {[%clk 0:02:58]} 6. Bg2 {[%clk 0:03:02]}  Nbd7 {[%clk 0:02:58]} 7. O-O {[%clk 0:03:02]}  O-O {[%clk 0:02:58]} 8. Qc2 {[%clk 0:03:03]}  c6 {[%clk 0:02:58]} 9. Rd1 {[%clk 0:03:04]}  b6 {[%clk 0:02:53]} 10. Bf4 {[%clk 0:03:04]}  Bb7 {[%clk 0:02:52]} 11. Nc3 {[%clk 0:03:04]}  dxc4 {[%clk 0:02:43]} 12. Nd2 {[%clk 0:03:03]}  Nd5 {[%clk 0:02:41]} 13. Nxc4 {[%clk 0:03:03]}  Nxf4 {[%clk 0:02:42]} 14. gxf4 {[%clk 0:03:04]}  Qc7 {[%clk 0:02:39]} 15. e3 {[%clk 0:03:04]}  Rac8 {[%clk 0:02:38]} 16. a4 {[%clk 0:03:03]}  c5 {[%clk 0:02:27]} 17. d5 {[%clk 0:03:03]}  exd5 {[%clk 0:02:26]} 18. Nxd5 {[%clk 0:03:03]}  Bxd5 {[%clk 0:02:25]} 19. Bxd5 {[%clk 0:03:04]}  Nf6 {[%clk 0:02:17]} 20. Bf3 {[%clk 0:02:48]}  Rfd8 {[%clk 0:02:16]} 21. Ne5 {[%clk 0:02:41]}  Rxd1+ {[%clk 0:01:41]} 22. Rxd1 {[%clk 0:02:39]}  Rd8 {[%clk 0:01:33]} 23. Rxd8+ {[%clk 0:02:27]}  Bxd8 {[%clk 0:01:29]} 24. Qc4 {[%clk 0:02:26]}  g6 {[%clk 0:01:18]} 25. Bd1 {[%clk 0:02:23]}  Ne8 {[%clk 0:01:15]} 26. Qd5 {[%clk 0:01:46]}  Bf6 {[%clk 0:01:05]} 27. Bb3 {[%clk 0:01:43]}  Bxe5 {[%clk 0:01:04]} 28. fxe5 {[%clk 0:01:43]}  Kg7 {[%clk 0:01:04]} 29. Bc4 {[%clk 0:01:36]}  Qe7 {[%clk 0:01:02]} 30. f4 {[%clk 0:01:33]}  f6 {[%clk 0:00:39]} 31. e6 {[%clk 0:01:15]}  Qd6 {[%clk 0:00:33]} 32. Qb7+ {[%clk 0:01:05]}  Nc7 {[%clk 0:00:30]} 33. Kf2 {[%clk 0:00:55]}  Kh6 {[%clk 0:00:26]} 34. Qc8 {[%clk 0:00:34]}  Qd2+ {[%clk 0:00:26]} 35. Be2 {[%clk 0:00:30]}  g5 {[%clk 0:00:08]} 36. Qxc7 {[%clk 0:00:28]}  g4 {[%clk 0:00:08]} 37. Qf7 {[%clk 0:00:26]}  Qxb2 {[%clk 0:00:05]} 38. e7 {[%clk 0:00:25]}  c4 {[%clk 0:00:04]} 39. e8=Q {[%clk 0:00:25]}  c3 {[%clk 0:00:04]} 40. Qef8# {[%clk 0:00:25]} 1-0


[Site "https://www.chess.com"]

[Event "Titled Tuesday Blitz March 15 Early 2022"]
[White "Samaganova, Aleksandra"]
[Black "Goriatchkin, Jouri"]
[WhiteFideId "13800221"]
[BlackFideId "4120183"]
[WhiteElo "1859"]
[BlackElo "966"]
[Result "1/2-1/2"]
[Round "07"]
[TimeControl "180+1"]
[Date "2022.03.15"]
[WhiteClock "0:01:06"]
[BlackClock "0:01:40"]

1. c4 {[%clk 0:02:53]}  c6 {[%clk 0:02:59]} 2. Nf3 {[%clk 0:02:51]}  d5 {[%clk 0:02:59]} 3. e3 {[%clk 0:02:51]}  Nf6 {[%clk 0:02:59]} 4. Nc3 {[%clk 0:02:45]}  e6 {[%clk 0:02:58]} 5. d4 {[%clk 0:02:39]}  Be7 {[%clk 0:02:58]} 6. Bd3 {[%clk 0:02:35]}  O-O {[%clk 0:02:57]} 7. O-O {[%clk 0:02:34]}  Nbd7 {[%clk 0:02:54]} 8. b3 {[%clk 0:02:29]}  b6 {[%clk 0:02:54]} 9. Bb2 {[%clk 0:02:23]}  Bb7 {[%clk 0:02:54]} 10. Rc1 {[%clk 0:02:22]}  c5 {[%clk 0:02:52]} 11. cxd5 {[%clk 0:02:01]}  Nxd5 {[%clk 0:02:48]} 12. e4 {[%clk 0:01:50]}  Nxc3 {[%clk 0:02:32]} 13. Bxc3 {[%clk 0:01:50]}  cxd4 {[%clk 0:02:30]} 14. Bxd4 {[%clk 0:01:50]}  Nc5 {[%clk 0:02:24]} 15. Bxc5 {[%clk 0:01:43]}  Bxc5 {[%clk 0:02:23]} 16. Bb1 {[%clk 0:01:40]}  Qxd1 {[%clk 0:02:20]} 17. Rfxd1 {[%clk 0:01:39]}  Rfd8 {[%clk 0:02:20]} 18. Ne5 {[%clk 0:01:20]}  Ba3 {[%clk 0:01:55]} 19. Rxd8+ {[%clk 0:01:10]}  Rxd8 {[%clk 0:01:55]} 20. Re1 {[%clk 0:01:08]}  Bb4 {[%clk 0:01:41]} 21. Rc1 {[%clk 0:01:07]}  Ba3 {[%clk 0:01:40]} 22. Re1 {[%clk 0:01:06]}  Bb4 {[%clk 0:01:40]} 23. Rc1 {[%clk 0:01:06]}  Ba3 {[%clk 0:01:40]} 1/2-1/2


[Site "https://www.chess.com"]

[Event "Titled Tuesday Blitz March 15 Early 2022"]
[White "Samunenkov, Ihor"]
[Black "Le, Tuan Minh"]
[WhiteFideId "14187086"]
[BlackFideId "12401153"]
[WhiteElo "2409"]
[BlackElo "2450"]
[Result "1-0"]
[Round "07"]
[TimeControl "180+1"]
[Date "2022.03.15"]
[WhiteClock "0:00:11"]
[BlackClock "0:00:02"]

1. d4 {[%clk 0:03:00]}  d5 {[%clk 0:02:59]} 2. c4 {[%clk 0:03:01]}  c6 {[%clk 0:02:59]} 3. cxd5 {[%clk 0:03:01]}  cxd5 {[%clk 0:03:00]} 4. Nc3 {[%clk 0:03:02]}  Nf6 {[%clk 0:03:00]} 5. Bf4 {[%clk 0:03:02]}  Nc6 {[%clk 0:03:01]} 6. e3 {[%clk 0:03:02]}  a6 {[%clk 0:03:01]} 7. Bd3 {[%clk 0:02:46]}  Bg4 {[%clk 0:03:01]} 8. Nge2 {[%clk 0:02:46]}  e6 {[%clk 0:03:00]} 9. O-O {[%clk 0:02:46]}  Bd6 {[%clk 0:03:00]} 10. Bxd6 {[%clk 0:02:45]}  Qxd6 {[%clk 0:03:01]} 11. Rc1 {[%clk 0:02:45]}  O-O {[%clk 0:03:01]} 12. Na4 {[%clk 0:02:46]}  Rac8 {[%clk 0:02:44]} 13. Nc5 {[%clk 0:02:40]}  Rc7 {[%clk 0:02:31]} 14. Qb3 {[%clk 0:02:36]}  Na5 {[%clk 0:02:25]} 15. Qb4 {[%clk 0:02:16]}  Nc4 {[%clk 0:02:25]} 16. Bxc4 {[%clk 0:01:54]}  dxc4 {[%clk 0:02:24]} 17. f3 {[%clk 0:01:55]}  Bh5 {[%clk 0:01:40]} 18. Rxc4 {[%clk 0:01:50]}  Bg6 {[%clk 0:01:27]} 19. e4 {[%clk 0:01:45]}  Qe7 {[%clk 0:01:20]} 20. Rfc1 {[%clk 0:01:40]}  Rfc8 {[%clk 0:01:17]} 21. b3 {[%clk 0:01:24]}  h6 {[%clk 0:01:04]} 22. Nxa6 {[%clk 0:01:16]}  Rxc4 {[%clk 0:00:28]} 23. Rxc4 {[%clk 0:01:07]}  Qd8 {[%clk 0:00:28]} 24. Rxc8 {[%clk 0:00:55]}  Qxc8 {[%clk 0:00:29]} 25. Nc5 {[%clk 0:00:56]}  Qc7 {[%clk 0:00:12]} 26. Qxb7 {[%clk 0:00:31]}  Qa5 {[%clk 0:00:12]} 27. Kf2 {[%clk 0:00:31]}  Qxa2 {[%clk 0:00:12]} 28. b4 {[%clk 0:00:27]}  Nh5 {[%clk 0:00:09]} 29. b5 {[%clk 0:00:24]}  Kh7 {[%clk 0:00:09]} 30. Qc7 {[%clk 0:00:21]}  Qb2 {[%clk 0:00:08]} 31. b6 {[%clk 0:00:20]}  e5 {[%clk 0:00:08]} 32. g3 {[%clk 0:00:16]}  exd4 {[%clk 0:00:07]} 33. b7 {[%clk 0:00:16]}  Bxe4 {[%clk 0:00:02]} 34. b8=Q {[%clk 0:00:14]}  Qd2 {[%clk 0:00:02]} 35. Nxe4 {[%clk 0:00:11]} 1-0


[Site "https://www.chess.com"]

[Event "Titled Tuesday Blitz March 15 Early 2022"]
[White "Sarana, Alexey"]
[Black "Kamsky, Gata"]
[WhiteFideId "24133795"]
[BlackFideId "2000024"]
[WhiteElo "2666"]
[BlackElo "2645"]
[Result "1-0"]
[Round "07"]
[TimeControl "180+1"]
[Date "2022.03.15"]
[WhiteClock "0:00:17"]
[BlackClock "0:00:02"]

1. d4 {[%clk 0:03:00]}  d5 {[%clk 0:02:54]} 2. c4 {[%clk 0:03:00]}  c6 {[%clk 0:02:54]} 3. Nf3 {[%clk 0:03:00]}  Nf6 {[%clk 0:02:54]} 4. Nc3 {[%clk 0:03:01]}  a6 {[%clk 0:02:53]} 5. e3 {[%clk 0:02:57]}  Bf5 {[%clk 0:02:51]} 6. Nh4 {[%clk 0:02:55]}  Be6 {[%clk 0:02:49]} 7. b3 {[%clk 0:02:53]}  g6 {[%clk 0:02:47]} 8. Bd3 {[%clk 0:02:50]}  Bg7 {[%clk 0:02:47]} 9. O-O {[%clk 0:02:50]}  O-O {[%clk 0:02:45]} 10. Bb2 {[%clk 0:02:50]}  c5 {[%clk 0:02:21]} 11. Nf3 {[%clk 0:02:41]}  dxc4 {[%clk 0:02:20]} 12. bxc4 {[%clk 0:02:42]}  cxd4 {[%clk 0:02:18]} 13. Nxd4 {[%clk 0:02:42]}  Bd7 {[%clk 0:02:16]} 14. Qb3 {[%clk 0:02:20]}  Nc6 {[%clk 0:01:58]} 15. Rfd1 {[%clk 0:02:18]}  Nxd4 {[%clk 0:01:20]} 16. exd4 {[%clk 0:02:19]}  Qc7 {[%clk 0:01:20]} 17. h3 {[%clk 0:02:17]}  Rfd8 {[%clk 0:01:07]} 18. Rac1 {[%clk 0:02:17]}  e6 {[%clk 0:01:04]} 19. Be2 {[%clk 0:02:15]}  Rab8 {[%clk 0:00:50]} 20. d5 {[%clk 0:02:07]}  b6 {[%clk 0:00:45]} 21. Bf3 {[%clk 0:01:46]}  Qa7 {[%clk 0:00:34]} 22. Ne4 {[%clk 0:01:36]}  Nxe4 {[%clk 0:00:33]} 23. Bxe4 {[%clk 0:01:37]}  e5 {[%clk 0:00:26]} 24. d6 {[%clk 0:01:33]}  Be6 {[%clk 0:00:25]} 25. Ba3 {[%clk 0:01:33]}  b5 {[%clk 0:00:25]} 26. Bd5 {[%clk 0:01:33]}  b4 {[%clk 0:00:24]} 27. Bb2 {[%clk 0:01:32]}  Rxd6 {[%clk 0:00:24]} 28. c5 {[%clk 0:01:27]}  Rxd5 {[%clk 0:00:23]} 29. Rxd5 {[%clk 0:01:27]}  Qc7 {[%clk 0:00:22]} 30. c6 {[%clk 0:01:25]}  Rc8 {[%clk 0:00:18]} 31. Qd3 {[%clk 0:01:15]}  Bxd5 {[%clk 0:00:18]} 32. Qxd5 {[%clk 0:01:16]}  h5 {[%clk 0:00:18]} 33. Rc4 {[%clk 0:00:58]}  a5 {[%clk 0:00:18]} 34. Bc1 {[%clk 0:00:57]}  a4 {[%clk 0:00:17]} 35. Qc5 {[%clk 0:00:22]}  b3 {[%clk 0:00:16]} 36. axb3 {[%clk 0:00:23]}  axb3 {[%clk 0:00:16]} 37. Bb2 {[%clk 0:00:24]}  Kh7 {[%clk 0:00:15]} 38. h4 {[%clk 0:00:23]}  Rd8 {[%clk 0:00:15]} 39. g3 {[%clk 0:00:23]}  Rd1+ {[%clk 0:00:14]} 40. Kg2 {[%clk 0:00:23]}  Rd2 {[%clk 0:00:14]} 41. Bc3 {[%clk 0:00:23]}  Rc2 {[%clk 0:00:14]} 42. Qb4 {[%clk 0:00:20]}  e4 {[%clk 0:00:13]} 43. Qxb3 {[%clk 0:00:19]}  Rxc3 {[%clk 0:00:12]} 44. Rxc3 {[%clk 0:00:20]}  Bxc3 {[%clk 0:00:12]} 45. Qxc3 {[%clk 0:00:21]}  Kg8 {[%clk 0:00:11]} 46. Qf6 {[%clk 0:00:20]}  Kh7 {[%clk 0:00:10]} 47. Kg1 {[%clk 0:00:18]}  Kg8 {[%clk 0:00:10]} 48. Kf1 {[%clk 0:00:17]}  Kh7 {[%clk 0:00:08]} 49. Qc3 {[%clk 0:00:17]}  Kg8 {[%clk 0:00:07]} 50. Qc5 {[%clk 0:00:17]}  Kh7 {[%clk 0:00:07]} 51. Kg2 {[%clk 0:00:18]}  Kg8 {[%clk 0:00:05]} 52. Qd5 {[%clk 0:00:18]}  e3 {[%clk 0:00:04]} 53. fxe3 {[%clk 0:00:19]}  Kg7 {[%clk 0:00:03]} 54. Kf3 {[%clk 0:00:18]}  Kg8 {[%clk 0:00:02]} 55. Qd7 {[%clk 0:00:18]}  Qe5 {[%clk 0:00:02]} 56. c7 {[%clk 0:00:18]}  Qf6+ {[%clk 0:00:02]} 57. Ke4 {[%clk 0:00:17]} 1-0


[Site "https://www.chess.com"]

[Event "Titled Tuesday Blitz March 15 Early 2022"]
[White "Shevchenko, Kirill"]
[Black "Tabatabaei, M. Amin"]
[WhiteFideId "14129574"]
[BlackFideId "12521213"]
[WhiteElo "2624"]
[BlackElo "2544"]
[Result "0-1"]
[Round "07"]
[TimeControl "180+1"]
[Date "2022.03.15"]
[WhiteClock "0:00:04"]
[BlackClock "0:00:10"]

1. c4 {[%clk 0:02:51]}  e6 {[%clk 0:02:58]} 2. Nc3 {[%clk 0:02:47]}  d5 {[%clk 0:02:59]} 3. d4 {[%clk 0:02:48]}  Nf6 {[%clk 0:02:59]} 4. cxd5 {[%clk 0:02:47]}  exd5 {[%clk 0:03:00]} 5. Bg5 {[%clk 0:02:47]}  c6 {[%clk 0:03:01]} 6. e3 {[%clk 0:02:47]}  Bf5 {[%clk 0:03:01]} 7. Qf3 {[%clk 0:02:46]}  Bg6 {[%clk 0:03:01]} 8. Bxf6 {[%clk 0:02:47]}  Qxf6 {[%clk 0:03:02]} 9. Qxf6 {[%clk 0:02:47]}  gxf6 {[%clk 0:03:03]} 10. Nf3 {[%clk 0:02:36]}  Nd7 {[%clk 0:03:02]} 11. Nh4 {[%clk 0:02:05]}  Be7 {[%clk 0:03:01]} 12. g3 {[%clk 0:01:57]}  a5 {[%clk 0:02:52]} 13. Bh3 {[%clk 0:01:51]}  Nb6 {[%clk 0:02:50]} 14. Nf5 {[%clk 0:01:27]}  Nc4 {[%clk 0:02:38]} 15. Nxe7 {[%clk 0:01:24]}  Kxe7 {[%clk 0:02:38]} 16. O-O-O {[%clk 0:01:23]}  Nd6 {[%clk 0:02:35]} 17. Ne2 {[%clk 0:01:18]}  h5 {[%clk 0:02:26]} 18. Nf4 {[%clk 0:01:14]}  h4 {[%clk 0:02:24]} 19. Bg2 {[%clk 0:01:09]}  a4 {[%clk 0:02:19]} 20. Rde1 {[%clk 0:00:58]}  Be4 {[%clk 0:01:58]} 21. f3 {[%clk 0:00:56]}  h3 {[%clk 0:01:58]} 22. Nxh3 {[%clk 0:00:49]}  Bxf3 {[%clk 0:01:57]} 23. Bxf3 {[%clk 0:00:50]}  Rxh3 {[%clk 0:01:57]} 24. e4 {[%clk 0:00:49]}  dxe4 {[%clk 0:01:42]} 25. Bxe4 {[%clk 0:00:50]}  Kd7 {[%clk 0:01:42]} 26. Bf3 {[%clk 0:00:45]}  f5 {[%clk 0:01:40]} 27. Bg2 {[%clk 0:00:36]}  Rh6 {[%clk 0:01:39]} 28. Re3 {[%clk 0:00:25]}  Rah8 {[%clk 0:01:35]} 29. h3 {[%clk 0:00:24]}  Rg8 {[%clk 0:01:30]} 30. Rhe1 {[%clk 0:00:23]}  Rhg6 {[%clk 0:01:22]} 31. g4 {[%clk 0:00:23]}  fxg4 {[%clk 0:01:19]} 32. hxg4 {[%clk 0:00:23]}  Kc7 {[%clk 0:01:15]} 33. Bf3 {[%clk 0:00:20]}  Rf6 {[%clk 0:01:14]} 34. Bd1 {[%clk 0:00:19]}  Rf4 {[%clk 0:01:09]} 35. Re7+ {[%clk 0:00:11]}  Kb6 {[%clk 0:01:07]} 36. Bxa4 {[%clk 0:00:10]}  Rgxg4 {[%clk 0:01:03]} 37. Bb3 {[%clk 0:00:10]}  Rg5 {[%clk 0:00:38]} 38. Rd7 {[%clk 0:00:10]}  Rg6 {[%clk 0:00:20]} 39. d5 {[%clk 0:00:07]}  c5 {[%clk 0:00:20]} 40. Bc2 {[%clk 0:00:07]}  Rgf6 {[%clk 0:00:18]} 41. b3 {[%clk 0:00:06]}  c4 {[%clk 0:00:17]} 42. Kb2 {[%clk 0:00:05]}  Rf2 {[%clk 0:00:12]} 43. Kb1 {[%clk 0:00:04]}  Nb5 {[%clk 0:00:11]} 44. Bh7 {[%clk 0:00:03]}  Nc3+ {[%clk 0:00:10]} 45. Kc1 {[%clk 0:00:03]}  Nxa2+ {[%clk 0:00:10]} 46. Kb1 {[%clk 0:00:04]}  Nc3+ {[%clk 0:00:11]} 47. Kc1 {[%clk 0:00:04]}  cxb3 {[%clk 0:00:10]} 0-1


[Site "https://www.chess.com"]

[Event "Titled Tuesday Blitz March 15 Early 2022"]
[White "Shimanov, Aleksandr"]
[Black "Molina, Roberto Junio Brito"]
[WhiteFideId "4198603"]
[BlackFideId "2109450"]
[WhiteElo "2636"]
[BlackElo "2432"]
[Result "1-0"]
[Round "07"]
[TimeControl "180+1"]
[Date "2022.03.15"]
[WhiteClock "0:00:18"]
[BlackClock "0:00:01"]

1. e4 {[%clk 0:02:48]}  c6 {[%clk 0:02:59]} 2. Nf3 {[%clk 0:02:42]}  d5 {[%clk 0:03:00]} 3. d3 {[%clk 0:02:42]}  Bg4 {[%clk 0:02:59]} 4. h3 {[%clk 0:02:40]}  Bh5 {[%clk 0:02:52]} 5. g4 {[%clk 0:02:39]}  Bg6 {[%clk 0:02:52]} 6. Qe2 {[%clk 0:02:39]}  f6 {[%clk 0:02:49]} 7. e5 {[%clk 0:02:32]}  e6 {[%clk 0:02:35]} 8. Nc3 {[%clk 0:02:22]}  f5 {[%clk 0:02:33]} 9. Nd4 {[%clk 0:02:13]}  Qe7 {[%clk 0:02:25]} 10. gxf5 {[%clk 0:02:07]}  Bxf5 {[%clk 0:02:25]} 11. h4 {[%clk 0:02:03]}  Bg6 {[%clk 0:02:19]} 12. Bg5 {[%clk 0:01:56]}  Qd7 {[%clk 0:02:15]} 13. h5 {[%clk 0:01:47]}  Bf7 {[%clk 0:02:15]} 14. O-O-O {[%clk 0:01:47]}  c5 {[%clk 0:02:09]} 15. Nb3 {[%clk 0:01:39]}  Nc6 {[%clk 0:02:07]} 16. f4 {[%clk 0:01:34]}  Be7 {[%clk 0:01:56]} 17. Bh3 {[%clk 0:01:25]}  h6 {[%clk 0:01:27]} 18. Bxe7 {[%clk 0:01:23]}  Qxe7 {[%clk 0:01:28]} 19. Rhg1 {[%clk 0:01:21]}  Rh7 {[%clk 0:01:09]} 20. Nb5 {[%clk 0:01:11]}  O-O-O {[%clk 0:01:06]} 21. Nd6+ {[%clk 0:01:11]}  Rxd6 {[%clk 0:01:06]} 22. exd6 {[%clk 0:01:11]}  Qxd6 {[%clk 0:01:07]} 23. f5 {[%clk 0:01:10]}  Nf6 {[%clk 0:00:59]} 24. fxe6 {[%clk 0:01:06]}  Be8 {[%clk 0:00:48]} 25. e7+ {[%clk 0:00:59]}  Kc7 {[%clk 0:00:48]} 26. Rde1 {[%clk 0:00:59]}  Nxh5 {[%clk 0:00:41]} 27. Qf2 {[%clk 0:00:48]}  c4 {[%clk 0:00:23]} 28. Nc5 {[%clk 0:00:46]}  Qf4+ {[%clk 0:00:18]} 29. Qxf4+ {[%clk 0:00:43]}  Nxf4 {[%clk 0:00:19]} 30. Ne6+ {[%clk 0:00:36]}  Nxe6 {[%clk 0:00:19]} 31. Bxe6 {[%clk 0:00:36]}  Kd6 {[%clk 0:00:18]} 32. Bf5 {[%clk 0:00:35]}  g6 {[%clk 0:00:16]} 33. Bxg6 {[%clk 0:00:35]}  Rh8 {[%clk 0:00:09]} 34. Bxe8 {[%clk 0:00:31]}  Rxe8 {[%clk 0:00:08]} 35. Rg6+ {[%clk 0:00:31]}  Kd7 {[%clk 0:00:05]} 36. dxc4 {[%clk 0:00:31]}  dxc4 {[%clk 0:00:05]} 37. Rxh6 {[%clk 0:00:31]}  Rxe7 {[%clk 0:00:04]} 38. Rxe7+ {[%clk 0:00:31]}  Nxe7 {[%clk 0:00:05]} 39. Kd2 {[%clk 0:00:30]}  Nd5 {[%clk 0:00:05]} 40. Rh4 {[%clk 0:00:21]}  b5 {[%clk 0:00:05]} 41. Rh7+ {[%clk 0:00:20]}  Ne7 {[%clk 0:00:03]} 42. Kc3 {[%clk 0:00:20]}  a5 {[%clk 0:00:03]} 43. Kd4 {[%clk 0:00:18]}  Kd6 {[%clk 0:00:01]} 44. Rxe7 {[%clk 0:00:17]}  Kxe7 {[%clk 0:00:01]} 45. Kc5 {[%clk 0:00:18]} 1-0


[Site "https://www.chess.com"]